bitfinex/quotes_BTCUSD_20250928
["timestamp","ask_amount","ask_price","bid_price","bid_amount"]
[1759093216363,0.55683533,111080.0,111070.0,0.432092]
[1759093216925,0.55679533,111080.0,111070.0,0.432092]
[1759093221005,0.18005041,111080.0,111070.0,0.95215862]
[1759093221255,0.55685041,111080.0,111070.0,0.95215862]
[1759093223798,0.55685041,111080.0,111070.0,0.772092]
[1759093224949,0.55685041,111080.0,111070.0,0.95215862]
[1759093225872,0.55685041,111080.0,111070.0,0.772092]
[1759093226549,0.55685041,111080.0,111070.0,0.3999619]
[1759093226696,0.55685041,111080.0,111070.0,0.772092]
[1759093237319,0.18005041,111080.0,111070.0,0.772092]
[1759093237519,0.55673041,111080.0,111070.0,0.772092]
[1759093239611,0.18005041,111080.0,111070.0,0.772092]
[1759093239962,0.55669041,111080.0,111070.0,0.772092]
[1759093244374,0.46289041,111080.0,111070.0,0.77200945]
[1759093244602,0.55669041,111080.0,111070.0,0.77200945]
[1759093247885,0.55665041,111080.0,111070.0,0.77200945]
[1759093255686,0.55665041,111080.0,111070.0,0.3999619]
[1759093255861,0.55665041,111080.0,111070.0,0.77200945]
[1759093262525,0.55665041,111080.0,111070.0,0.3949019]
[1759093262726,0.55665041,111080.0,111070.0,0.0549019]
[1759093263525,0.60665041,111080.0,111070.0,0.0549019]
[1759093263766,0.79344398,111080.0,111070.0,0.0549019]
[1759093263974,0.97349439,111080.0,111070.0,0.0549019]
[1759093264546,0.60144684,111080.0,111070.0,0.0549019]
[1759093267671,0.23005041,111080.0,111070.0,0.0549019]
[1759093267919,0.60653041,111080.0,111070.0,0.0549019]
[1759093268729,0.97857796,111080.0,111070.0,0.02475]
[1759093269372,0.97857796,111080.0,111070.0,0.02275]
[1759093269787,0.97957796,111080.0,111070.0,0.02275]
[1759093269984,0.60309796,111080.0,111070.0,0.02275]
[1759093270195,0.98053796,111080.0,111070.0,0.02275]
[1759093270600,0.60409796,111080.0,111070.0,0.02275]
[1759093270805,0.98053796,111080.0,111070.0,0.02275]
[1759093271300,1.00762378,111080.0,111070.0,0.02275]
[1759093271613,1.02174668,111080.0,111070.0,0.02275]
[1759093271818,0.64530668,111080.0,111070.0,0.02275]
[1759093272000,1.02174668,111080.0,111070.0,0.02275]
[1759093272819,0.92794668,111080.0,111070.0,0.02275]
[1759093272948,1.02174668,111080.0,111070.0,0.02275]
[1759093274502,0.92794668,111080.0,111070.0,0.02275]
[1759093274845,1.02174668,111080.0,111070.0,0.02275]
[1759093275378,1.00762378,111080.0,111070.0,0.02275]
[1759093275592,0.63557623,111080.0,111070.0,0.02275]
[1759093275804,1.00762378,111080.0,111070.0,0.02275]
[1759093276667,0.63118378,111080.0,111070.0,0.02275]
[1759093276870,1.00762378,111080.0,111070.0,0.02275]
[1759093277626,0.63118378,111080.0,111070.0,0.02275]
[1759093277802,1.00758378,111080.0,111070.0,0.02275]
[1759093278641,0.63118378,111080.0,111070.0,0.02275]
[1759093278962,1.00758378,111080.0,111070.0,0.02275]
[1759093279333,0.63118378,111080.0,111070.0,0.02275]
[1759093279494,1.00758378,111080.0,111070.0,0.02275]
[1759093281543,1.0217066,111080.0,111070.0,0.02275]
[1759093283608,0.6453066,111080.0,111070.0,0.02275]
[1759093283814,1.0217066,111080.0,111070.0,0.02275]
[1759093284977,0.36705905,111080.0,111070.0,0.0579419]
[1759093285192,0.64961905,111080.0,111070.0,0.0579419]
[1759093285374,0.27325905,111080.0,111070.0,0.0579419]
[1759093285632,0.24617323,111080.0,111070.0,0.0579419]
[1759093285845,0.62253323,111080.0,111070.0,0.0579419]
[1759093286491,0.24617323,111080.0,111070.0,0.0579419]
[1759093286699,0.62153323,111080.0,111070.0,0.0579419]
[1759093288001,0.62053323,111080.0,111070.0,0.0579419]
[1759093288165,0.62053323,111080.0,111070.0,0.0599419]
[1759093288345,0.60641041,111080.0,111070.0,0.0599419]
[1759093288952,0.23005041,111080.0,111070.0,0.63006273]
[1759093289146,0.42636,111080.0,111070.0,0.61205607]
[1759093289508,0.60637041,111080.0,111070.0,0.61205607]
[1759093289925,0.42632,111080.0,111070.0,0.61205607]
[1759093290175,0.37632,111080.0,111070.0,0.61205607]
[1759093290621,0.21282834,111090.0,111080.0,0.0301519]
[1759093290835,0.18914834,111090.0,111080.0,0.0351919]
[1759093291079,0.18914834,111090.0,111080.0,0.0600219]
[1759093291080,0.56546834,111090.0,111080.0,0.0600219]
[1759093291779,0.56546834,111090.0,111080.0,0.06006799]
[1759093291984,0.56646834,111090.0,111080.0,0.06006799]
[1759093292239,0.56746834,111090.0,111080.0,0.06006799]
[1759093293155,0.47366834,111090.0,111080.0,0.06006799]
[1759093293400,0.56746834,111090.0,111080.0,0.06006799]
[1759093304314,0.38328293,111090.0,111080.0,0.06006799]
[1759093304712,0.5633463,111090.0,111080.0,0.06006799]
[1759093306104,0.5633463,111090.0,111080.0,0.05709799]
[1759093306328,0.5633463,111090.0,111080.0,0.05502799]
[1759093306964,0.93539617,111090.0,111080.0,0.05502799]
[1759093308182,0.5633463,111090.0,111080.0,0.05502799]
[1759093308957,0.93539617,111090.0,111080.0,0.05502799]
[1759093309421,1.01247874,111090.0,111080.0,0.05502799]
[1759093309828,1.01231874,111090.0,111080.0,0.05502799]
[1759093311482,1.01231874,111090.0,111080.0,0.02487609]
[1759093311709,1.02644038,111090.0,111080.0,0.02487609]
[1759093312113,0.65028038,111090.0,111080.0,0.02487609]
[1759093312345,1.40164038,111090.0,111080.0,0.02487609]
[1759093313053,0.93264038,111090.0,111080.0,0.02487609]
[1759093313270,1.40164038,111090.0,111080.0,0.02487609]
[1759093314889,0.65028038,111090.0,111080.0,0.02487609]
[1759093315312,1.40164038,111090.0,111080.0,0.02487609]
[1759093318304,0.63615874,111090.0,111080.0,0.02487609]
[1759093318555,1.38747874,111090.0,111080.0,0.02487609]
[1759093321423,1.40160098,111090.0,111080.0,0.02487609]
[1759093322039,0.65028098,111090.0,111080.0,0.02487609]
[1759093322247,1.40164098,111090.0,111080.0,0.02487609]
[1759093322446,0.93260098,111090.0,111080.0,0.02487609]
[1759093322770,1.40164098,111090.0,111080.0,0.02487609]
[1759093323141,0.65028098,111090.0,111080.0,0.02487609]
[1759093323365,1.40164098,111090.0,111080.0,0.02487609]
[1759093323727,0.65028098,111090.0,111080.0,0.02487609]
[1759093324080,1.40160098,111090.0,111080.0,0.02487609]
[1759093324471,0.65028098,111090.0,111080.0,0.02487609]
[1759093324668,1.30780098,111090.0,111080.0,0.02487609]
[1759093324884,1.40160098,111090.0,111080.0,0.02487609]
[1759093326987,0.93256098,111090.0,111080.0,0.02487609]
[1759093327198,1.40160098,111090.0,111080.0,0.02487609]
[1759093328252,1.38747874,111090.0,111080.0,0.02487609]
[1759093328457,0.26410887,111090.0,111080.0,0.02983609]
[1759093328694,1.38747874,111090.0,111080.0,0.02983609]
[1759093329744,1.38747874,111090.0,111080.0,0.02683609]
[1759093329962,1.38747874,111090.0,111080.0,0.02487609]
[1759093331417,0.63615874,111090.0,111080.0,0.02487609]
[1759093331623,1.38743874,111090.0,111080.0,0.02487609]
[1759093332641,1.40156081,111090.0,111080.0,0.02487609]
[1759093333460,1.18816935,111090.0,111080.0,0.02487609]
[1759093333655,1.19717106,111090.0,111080.0,0.02487609]
[1759093333869,1.37723443,111090.0,111080.0,0.02487609]
[1759093334966,1.35359959,111090.0,111080.0,0.02487609]
[1759093338387,1.33947752,111090.0,111080.0,0.02487609]
[1759093341634,1.35359977,111090.0,111080.0,0.02487609]
[1759093342353,0.9815499,111090.0,111080.0,0.02487609]
[1759093342603,1.35359977,111090.0,111080.0,0.02487609]
[1759093345319,1.40359977,111090.0,111080.0,0.02487609]
[1759093348341,1.38947752,111090.0,111080.0,0.02487609]
[1759093349585,0.18009905,111050.0,111040.0,0.39913435]
[1759093349814,0.55605905,111050.0,111040.0,0.74625583]
[1759093350032,0.57922905,111050.0,111040.0,0.77640773]
[1759093350206,0.57922905,111050.0,111040.0,0.77944773]
[1759093351146,0.57922905,111050.0,111040.0,0.78544773]
[1759093351489,0.57922905,111050.0,111040.0,0.79644773]
[1759093351694,0.57922905,111050.0,111040.0,0.82095773]
[1759093352389,0.57922905,111050.0,111040.0,0.80995773]
[1759093352724,0.57922905,111050.0,111040.0,0.81195773]
[1759093353896,0.48538905,111050.0,111040.0,0.81195773]
[1759093354194,0.57918905,111050.0,111040.0,0.81595773]
[1759093354354,0.20326905,111050.0,111040.0,0.81595773]
[1759093354533,0.57918905,111050.0,111040.0,0.81595773]
[1759093357229,0.57918905,111050.0,111040.0,0.81195773]
[1759093357409,0.57918905,111050.0,111040.0,0.80395773]
[1759093357780,0.57918905,111050.0,111040.0,0.81195773]
[1759093361099,0.57914905,111050.0,111040.0,0.81195773]
[1759093364285,0.57914905,111050.0,111040.0,0.06785799]
[1759093364490,0.57914905,111050.0,111040.0,0.81195773]
[1759093368466,0.57914905,111050.0,111040.0,0.44010361]
[1759093368800,0.48530905,111050.0,111040.0,0.44010361]
[1759093369137,0.57910905,111050.0,111040.0,0.44010361]
[1759093372819,0.48530905,111050.0,111040.0,0.44010361]
[1759093373030,0.57910905,111050.0,111040.0,0.44010361]
[1759093380264,0.20326905,111050.0,111040.0,0.44010361]
[1759093380476,0.57902905,111050.0,111040.0,0.44010361]
[1759093382547,0.48522905,111050.0,111040.0,0.62021888]
[1759093382697,0.57902905,111050.0,111040.0,0.62021888]
[1759093383458,0.57902905,111050.0,111040.0,0.44010361]
[1759093384579,0.48522905,111050.0,111040.0,0.62021888]
[1759093384722,0.29706905,111050.0,111040.0,0.62021888]
[1759093384939,0.57902905,111050.0,111040.0,0.62021888]
[1759093385164,0.20326905,111050.0,111040.0,0.62021888]
[1759093385382,0.57902905,111050.0,111040.0,0.62021888]
[1759093385941,0.20326905,111050.0,111040.0,0.62021888]
[1759093386147,0.57898905,111050.0,111040.0,0.62021888]
[1759093388018,0.37572,111050.0,111040.0,0.62021888]
[1759093388218,0.55581905,111050.0,111040.0,0.62021888]
[1759093388760,0.55585905,111050.0,111040.0,0.62021888]
[1759093389273,0.18009905,111050.0,111040.0,0.62021888]
[1759093389498,0.55581905,111050.0,111040.0,0.62021888]
[1759093390522,0.18009905,111050.0,111040.0,0.62021888]
[1759093390724,0.55581905,111050.0,111040.0,0.62021888]
[1759093393195,0.18009905,111050.0,111040.0,0.62021888]
[1759093393403,0.46197905,111050.0,111040.0,0.62021888]
[1759093394320,0.18009905,111050.0,111040.0,0.62021888]
[1759093394521,0.55577905,111050.0,111040.0,0.62021888]
[1759093395869,0.18009905,111050.0,111040.0,0.62021888]
[1759093396069,0.37568,111050.0,111040.0,0.62021888]
[1759093400453,0.55577905,111050.0,111040.0,0.62021888]
[1759093400633,0.55577905,111050.0,111040.0,0.64730676]
[1759093401177,0.6540269,111060.0,111040.0,0.64730676]
[1759093401407,0.6540269,111060.0,111050.0,0.37224562]
[1759093401408,0.55295836,111060.0,111050.0,0.37224562]
[1759093401533,1.0050369,111060.0,111050.0,0.37754562]
[1759093401712,1.0050369,111060.0,111050.0,0.40210562]
[1759093403027,1.0050369,111060.0,111050.0,0.40310562]
[1759093404440,1.0050369,111060.0,111050.0,0.40510562]
[1759093407485,1.0550369,111060.0,111050.0,0.40510562]
[1759093427375,1.0550369,111060.0,111050.0,0.58520467]
[1759093427511,1.0550369,111060.0,111050.0,0.40510562]
[1759093430397,1.0550369,111060.0,111050.0,0.40502143]
[1759093431177,1.0550369,111060.0,111050.0,0.58512048]
[1759093432005,0.6793969,111060.0,111050.0,0.58512048]
[1759093432213,1.0548369,111060.0,111050.0,0.58512048]
[1759093432416,0.6793969,111060.0,111050.0,0.58512048]
[1759093432626,0.4993,111060.0,111050.0,0.95728191]
[1759093432824,0.87474,111060.0,111050.0,1.32743381]
[1759093433064,0.87474,111060.0,111050.0,1.35451912]
[1759093434120,1.05482283,111060.0,111050.0,1.17442007]
[1759093434566,1.05482283,111060.0,111050.0,1.35451912]
[1759093435104,0.87474,111060.0,111050.0,1.35451912]
[1759093435530,1.05482283,111060.0,111050.0,1.35451912]
[1759093439303,0.87474,111060.0,111050.0,1.35451912]
[1759093439662,1.05482283,111060.0,111050.0,1.35451912]
[1759093440522,0.87474,111060.0,111050.0,1.35451912]
[1759093441635,1.05482283,111060.0,111050.0,1.35451912]
[1759093448670,0.84849779,111060.0,111050.0,1.35451912]
[1759093450066,0.47305779,111060.0,111050.0,1.35451912]
[1759093450275,0.66833496,111060.0,111050.0,1.35451912]
[1759093450668,0.84841779,111060.0,111050.0,1.35451912]
[1759093451113,0.84837779,111060.0,111050.0,1.35451912]
[1759093451439,0.66829496,111060.0,111050.0,1.35451912]
[1759093451558,0.84837779,111060.0,111050.0,1.35451912]
[1759093451765,0.75457779,111060.0,111050.0,1.35451912]
[1759093451964,0.84837779,111060.0,111050.0,1.35451912]
[1759093452219,0.29297496,111060.0,111050.0,1.35451912]
[1759093452414,0.84837779,111060.0,111050.0,1.35451912]
[1759093452931,0.84837779,111060.0,111050.0,0.98235769]
[1759093453892,0.47305779,111060.0,111050.0,0.98235769]
[1759093454134,0.66829496,111060.0,111050.0,0.98235769]
[1759093454317,0.29297496,111060.0,111050.0,0.98235769]
[1759093454530,0.66829496,111060.0,111050.0,0.98235769]
[1759093455362,0.84837779,111060.0,111050.0,0.98235769]
[1759093457772,0.57445496,111060.0,111050.0,0.98235769]
[1759093458169,0.29297496,111060.0,111050.0,0.98235769]
[1759093458374,0.57445496,111060.0,111050.0,0.98235769]
[1759093461338,0.57445496,111060.0,111050.0,1.04945468]
[1759093461884,0.29297496,111060.0,111050.0,1.04945468]
[1759093462091,0.57445496,111060.0,111050.0,1.04945468]
[1759093464465,0.29297496,111060.0,111050.0,1.04945468]
[1759093464638,0.29297496,111060.0,111050.0,1.42161611]
[1759093464866,0.05,111060.0,111050.0,1.70305611]
[1759093465279,0.2999,111070.0,111060.0,0.55023473]
[1759093465474,0.28144,111070.0,111060.0,1.29765759]
[1759093465759,0.28144,111070.0,111060.0,1.32353759]
[1759093466585,0.28144,111070.0,111060.0,1.72277905]
[1759093467162,0.28144,111070.0,111060.0,1.35061762]
[1759093467337,0.28144,111070.0,111060.0,1.35461762]
[1759093467967,0.28144,111070.0,111060.0,1.36161762]
[1759093473110,0.28144,111070.0,111060.0,0.61729476]
[1759093473326,0.28144,111070.0,111060.0,1.36161762]
[1759093484986,0.28144,111070.0,111060.0,0.61729476]
[1759093485293,0.28144,111070.0,111060.0,1.36161762]
[1759093490374,0.28144,111070.0,111060.0,0.98933706]
[1759093496722,0.28144,111070.0,111060.0,0.61729476]
[1759093496927,0.28144,111070.0,111060.0,0.98933706]
[1759093499023,0.11105951,111070.0,111060.0,0.98933706]
[1759093501683,0.19851078,111080.0,111070.0,0.55021852]
[1759093502068,0.18005041,111080.0,111070.0,0.92721082]
[1759093502285,0.52342711,111090.0,111070.0,0.95136082]
[1759093502486,0.28136,111080.0,111070.0,0.97844085]
[1759093502815,0.46141041,111080.0,111070.0,0.97844085]
[1759093503213,0.46141041,111080.0,111070.0,0.98044085]
[1759093503425,0.46141041,111080.0,111070.0,0.98444085]
[1759093505525,0.46141041,111080.0,111070.0,0.80437423]
[1759093507991,0.52342711,111090.0,111070.0,0.98444085]
[1759093508192,0.46141041,111080.0,111070.0,0.61239855]
[1759093508396,0.46141041,111080.0,111070.0,0.98444085]
[1759093509202,0.18005041,111080.0,111070.0,0.98444085]
[1759093509408,0.46141041,111080.0,111070.0,0.98044085]
[1759093509634,0.46141041,111080.0,111070.0,0.98144085]
[1759093510272,0.46141041,111080.0,111070.0,0.98044085]
[1759093510686,0.46141041,111080.0,111070.0,0.98444085]
[1759093511743,0.52342711,111090.0,111070.0,0.98444085]
[1759093511942,0.28136,111080.0,111070.0,0.61239855]
[1759093512695,0.28136,111080.0,111070.0,0.60839855]
[1759093512894,0.28136,111080.0,111070.0,0.60939855]
[1759093513184,0.28136,111080.0,111070.0,0.98144085]
[1759093513606,0.28136,111080.0,111070.0,0.98044085]
[1759093513920,0.28136,111080.0,111070.0,0.98444085]
[1759093516018,0.46141041,111080.0,111070.0,0.98444085]
[1759093517439,0.28136,111080.0,111070.0,0.98444085]
[1759093518261,0.52342711,111090.0,111070.0,0.98444085]
[1759093518457,0.28136,111080.0,111070.0,0.61239855]
[1759093519355,0.28136,111080.0,111070.0,0.60839855]
[1759093519590,0.28136,111080.0,111070.0,0.60939855]
[1759093519797,0.52342711,111090.0,111070.0,0.98144085]
[1759093520034,0.52342711,111090.0,111080.0,0.3720423]
[1759093520278,0.88008711,111090.0,111080.0,0.3720423]
[1759093520486,0.88008711,111090.0,111080.0,0.3956723]
[1759093520706,0.80713102,111090.0,111080.0,0.3956723]
[1759093520951,0.80713102,111090.0,111080.0,0.46277147]
[1759093521397,0.80713102,111090.0,111080.0,0.46281756]
[1759093522299,0.80713102,111090.0,111080.0,0.46381756]
[1759093522439,0.43201102,111090.0,111080.0,0.46381756]
[1759093522654,0.80713102,111090.0,111080.0,0.46381756]
[1759093524482,0.80713102,111090.0,111080.0,0.47308939]
[1759093525464,0.43201102,111090.0,111080.0,0.10104709]
[1759093525603,0.43201102,111090.0,111080.0,0.47822939]
[1759093525604,0.33201102,111090.0,111080.0,0.47822939]
[1759093525979,0.71609273,111090.0,111080.0,0.47822939]
[1759093530294,0.71609273,111090.0,111080.0,0.13326712]
[1759093530517,0.71609273,111090.0,111080.0,0.50530942]
[1759093536087,0.71609273,111090.0,111080.0,0.50214942]
[1759093536469,0.71609273,111090.0,111080.0,0.13010712]
[1759093542420,0.71609273,111090.0,111080.0,0.12083529]
[1759093544011,0.71609273,111090.0,111080.0,0.49287759]
[1759093544319,0.71609273,111090.0,111080.0,0.5051563]
[1759093548246,0.71609273,111090.0,111080.0,0.12399529]
[1759093548553,0.71609273,111090.0,111080.0,0.49603759]
[1759093549098,0.71609273,111090.0,111080.0,0.12399529]
[1759093552265,0.71609273,111090.0,111080.0,0.49601465]
[1759093555938,0.71609273,111090.0,111080.0,0.12399529]
[1759093556142,0.71609273,111090.0,111080.0,0.49601465]
[1759093556764,0.71609273,111090.0,111080.0,0.49201465]
[1759093557504,0.71605273,111090.0,111080.0,0.49201465]
[1759093559719,0.34101273,111090.0,111080.0,0.49201465]
[1759093559921,0.71601273,111090.0,111080.0,0.49201465]
[1759093561357,0.34101273,111090.0,111080.0,0.49201465]
[1759093561568,0.71601273,111090.0,111080.0,0.49201465]
[1759093563390,0.34101273,111090.0,111080.0,0.49201465]
[1759093563594,0.71601273,111090.0,111080.0,0.49201465]
[1759093566741,0.62225273,111090.0,111080.0,0.49201465]
[1759093566977,0.71601273,111090.0,111080.0,0.49201465]
[1759093567936,0.34101273,111090.0,111080.0,0.49201465]
[1759093568141,0.71601273,111090.0,111080.0,0.49201465]
[1759093574327,0.71601273,111090.0,111080.0,0.11999529]
[1759093574552,0.71601273,111090.0,111080.0,0.49201465]
[1759093576793,0.71601273,111090.0,111080.0,0.11999529]
[1759093576997,0.71601273,111090.0,111080.0,0.49201465]
[1759093580540,0.71601273,111090.0,111080.0,0.42491548]
[1759093585337,0.49872938,111090.0,111080.0,0.42491548]
[1759093587440,0.12372938,111090.0,111080.0,0.42491548]
[1759093587607,0.51665128,111090.0,111080.0,0.42491548]
[1759093587809,0.49864938,111090.0,111080.0,0.42491548]
[1759093589594,0.49864938,111090.0,111080.0,0.42291548]
[1759093590694,0.94794938,111090.0,111080.0,0.42291548]
[1759093598108,0.57302938,111090.0,111080.0,0.42291548]
[1759093598317,0.94794938,111090.0,111080.0,0.42291548]
[1759093601630,0.57302938,111090.0,111080.0,0.42291548]
[1759093601831,0.94790938,111090.0,111080.0,0.42291548]
[1759093603205,0.57302938,111090.0,111080.0,0.42291548]
[1759093603410,0.94790938,111090.0,111080.0,0.42291548]
[1759093603940,0.57302938,111090.0,111080.0,0.42291548]
[1759093604121,0.94790938,111090.0,111080.0,0.42291548]
[1759093605931,0.57302938,111090.0,111080.0,0.42291548]
[1759093606131,0.94790938,111090.0,111080.0,0.42291548]
[1759093606336,0.57302938,111090.0,111080.0,0.42291548]
[1759093606562,0.94790938,111090.0,111080.0,0.42291548]
[1759093607715,0.57302938,111090.0,111080.0,0.42291548]
[1759093607923,0.94790938,111090.0,111080.0,0.42291548]
[1759093614385,0.94790938,111090.0,111080.0,0.42290977]
[1759093615426,0.57302938,111090.0,111080.0,0.42290977]
[1759093615630,0.94786938,111090.0,111080.0,0.42290977]
[1759093617061,0.57302938,111090.0,111080.0,0.42290977]
[1759093617258,0.94786938,111090.0,111080.0,0.42290977]
[1759093617450,0.57302938,111090.0,111080.0,0.42290977]
[1759093617658,0.94786938,111090.0,111080.0,0.42290977]
[1759093621417,0.94786938,111090.0,111080.0,0.05089612]
[1759093621627,0.94786938,111090.0,111080.0,0.42290977]
[1759093636149,0.57302938,111090.0,111080.0,0.42290977]
[1759093636350,0.94782938,111090.0,111080.0,0.42290977]
[1759093639814,0.94782938,111090.0,111080.0,0.05089612]
[1759093640020,0.94782938,111090.0,111080.0,0.42290977]
[1759093641180,0.94778938,111090.0,111080.0,0.42290977]
[1759093641611,0.94778938,111090.0,111080.0,0.05089612]
[1759093642167,0.94778938,111090.0,111080.0,0.04773612]
[1759093645409,0.94778938,111090.0,111080.0,0.04575612]
[1759093645617,0.94778938,111090.0,111080.0,0.07590802]
[1759093646860,0.57302938,111090.0,111080.0,0.07590802]
[1759093647088,0.94778938,111090.0,111080.0,0.07590802]
[1759093659198,0.94778938,111090.0,111080.0,0.04882799]
[1759093659623,0.97487034,111090.0,111080.0,0.04882799]
[1759093663510,1.02487034,111090.0,111080.0,0.04882799]
[1759093664802,0.93107034,111090.0,111080.0,0.05082799]
[1759093665018,1.02483034,111090.0,111080.0,0.05082799]
[1759093666685,0.84886533,111090.0,111080.0,0.05082799]
[1759093666865,1.02889968,111090.0,111080.0,0.05082799]
[1759093667798,1.03790139,111090.0,111080.0,0.05082799]
[1759093670309,1.03790139,111090.0,111080.0,0.04882799]
[1759093670913,1.40991504,111090.0,111080.0,0.04882799]
[1759093671058,1.03790139,111090.0,111080.0,0.04882799]
[1759093674474,1.40999994,111090.0,111080.0,0.04882799]
[1759093681369,1.40999994,111090.0,111080.0,0.01867609]
[1759093683294,1.03790139,111090.0,111080.0,0.01867609]
[1759093683480,1.40999994,111090.0,111080.0,0.01867609]
[1759093686052,1.03790139,111090.0,111080.0,0.01867609]
[1759093686179,1.40999994,111090.0,111080.0,0.01867609]
[1759093686864,0.66318139,111090.0,111080.0,0.02366609]
[1759093687067,1.40995994,111090.0,111080.0,0.02366609]
[1759093687243,1.03527994,111090.0,111080.0,0.02366609]
[1759093687467,0.75698139,111090.0,111080.0,0.02366609]
[1759093687689,1.03786139,111090.0,111080.0,0.02366609]
[1759093688956,0.94406139,111090.0,111080.0,0.02366609]
[1759093689263,1.03786139,111090.0,111080.0,0.02366609]
[1759093689969,0.94406139,111090.0,111080.0,0.02366609]
[1759093690177,0.66318139,111090.0,111080.0,0.02366609]
[1759093690378,1.03786139,111090.0,111080.0,0.02366609]
[1759093691211,0.66318139,111090.0,111080.0,0.02366609]
[1759093691351,1.03786139,111090.0,111080.0,0.02366609]
[1759093692984,0.66318139,111090.0,111080.0,0.02366609]
[1759093693310,1.03786139,111090.0,111080.0,0.02366609]
[1759093697015,0.94406139,111090.0,111080.0,0.02366609]
[1759093697230,0.66318139,111090.0,111080.0,0.02366609]
[1759093697441,1.03786139,111090.0,111080.0,0.02366609]
[1759093697856,0.66318139,111090.0,111080.0,0.02366609]
[1759093698074,1.03786139,111090.0,111080.0,0.02366609]
[1759093703501,0.66318139,111090.0,111080.0,0.02366609]
[1759093703714,0.66318139,111090.0,111080.0,0.39576464]
[1759093703919,0.69797953,111090.0,111080.0,0.79801509]
[1759093704128,0.97949953,111090.0,111080.0,0.79801509]
[1759093704350,0.97949953,111090.0,111080.0,0.82509509]
[1759093704560,0.85865857,111090.0,111080.0,0.82509509]
[1759093704943,0.57709857,111090.0,111080.0,0.82509509]
[1759093705160,0.85865857,111090.0,111080.0,0.82509509]
[1759093705363,0.57709857,111090.0,111080.0,0.82509509]
[1759093705626,0.85861857,111090.0,111080.0,0.82509509]
[1759093707594,0.57709857,111090.0,111080.0,0.82509509]
[1759093707801,0.85861857,111090.0,111080.0,0.82509509]
[1759093709303,0.85865857,111090.0,111080.0,1.0051455]
[1759093710502,0.85865857,111090.0,111080.0,0.9780655]
[1759093712934,0.57709857,111090.0,111080.0,0.9780655]
[1759093713210,0.85865857,111090.0,111080.0,0.9780655]
[1759093713493,0.85865857,111090.0,111080.0,1.00514397]
[1759093715443,0.39706437,111090.0,111080.0,1.34514397]
[1759093715658,0.67858437,111090.0,111080.0,1.34514397]
[1759093716543,0.85861857,111090.0,111080.0,1.34514397]
[1759093718343,0.67858437,111090.0,111080.0,1.34514397]
[1759093719431,0.67858437,111090.0,111080.0,0.60094687]
[1759093719629,0.67858437,111090.0,111080.0,1.34514397]
[1759093719846,0.39706437,111090.0,111080.0,1.34514397]
[1759093720051,0.11222,111100.0,111090.0,0.5200342]
[1759093720285,0.09376,111100.0,111090.0,1.2693613]
[1759093720493,0.3752,111100.0,111090.0,1.2941313]
[1759093720690,0.3752,111100.0,111090.0,1.32120713]
[1759093721094,0.3752,111100.0,111090.0,0.94910858]
[1759093721284,0.3752,111100.0,111090.0,0.95110858]
[1759093721672,0.3752,111100.0,111090.0,0.95210858]
[1759093722839,0.3752,111100.0,111090.0,1.35435903]
[1759093723461,0.28136,111100.0,111090.0,1.4203698]
[1759093725067,0.19953059,111110.0,111100.0,0.180018]
[1759093725293,0.55016059,111110.0,111100.0,0.9262051]
[1759093725473,0.55016059,111110.0,111100.0,0.9541151]
[1759093726155,0.55016059,111110.0,111100.0,0.9591151]
[1759093726360,0.55016059,111110.0,111100.0,0.96823042]
[1759093726556,0.55016059,111110.0,111100.0,0.97023042]
[1759093727147,0.26884059,111110.0,111100.0,0.97023042]
[1759093727431,0.55012059,111110.0,111100.0,0.97023042]
[1759093728397,0.17508059,111110.0,111100.0,0.97023042]
[1759093728602,0.45632059,111110.0,111100.0,0.97023042]
[1759093730623,0.28124,111110.0,111100.0,0.97023042]
[1759093731830,0.4612418,111110.0,111100.0,0.97023042]
[1759093733733,0.28428707,111110.0,111100.0,0.97023042]
[1759093736256,0.28428707,111110.0,111100.0,0.22603332]
[1759093736459,0.28428707,111110.0,111100.0,0.59786303]
[1759093741138,0.28428707,111110.0,111100.0,0.22603332]
[1759093741366,0.28428707,111110.0,111100.0,0.59786303]
[1759093743837,0.4610018,111110.0,111100.0,0.59786303]
[1759093750094,0.1800018,111110.0,111100.0,0.59786303]
[1759093750300,0.4608818,111110.0,111100.0,0.59786303]
[1759093750503,0.4608818,111110.0,111100.0,0.62493665]
[1759093768119,0.1800018,111110.0,111100.0,0.62493665]
[1759093768305,0.4608418,111110.0,111100.0,0.62493665]
[1759093771167,0.4608418,111110.0,111100.0,0.62493665]
[1759093771375,0.4608418,111110.0,111100.0,0.25310694]
[1759093771576,0.4608418,111110.0,111100.0,0.62493665]
[1759093772557,0.4608418,111110.0,111100.0,0.25310694]
[1759093772741,0.4608418,111110.0,111100.0,0.62493665]
[1759093774924,0.4608418,111110.0,111100.0,0.25310694]
[1759093775161,0.4608418,111110.0,111100.0,0.62493665]
[1759093783646,0.4608418,111110.0,111100.0,0.25310694]
[1759093783855,0.4608418,111110.0,111100.0,0.62493665]
[1759093785313,0.1800018,111110.0,111100.0,0.62493665]
[1759093785521,0.4608418,111110.0,111100.0,0.62493665]
[1759093786148,0.1800018,111110.0,111100.0,0.62493665]
[1759093786348,0.4608418,111110.0,111100.0,0.62493665]
[1759093786853,0.1800018,111110.0,111100.0,0.62493665]
[1759093787005,0.4608418,111110.0,111100.0,0.62493665]
[1759093792503,0.70433578,111120.0,111110.0,0.0301519]
[1759093792823,0.96068578,111120.0,111110.0,0.0545119]
[1759093793888,0.96068578,111120.0,111110.0,0.0555119]
[1759093794240,0.96068578,111120.0,111110.0,0.0565119]
[1759093797428,0.78062365,111120.0,111110.0,0.0565119]
[1759093797638,0.9438365,111120.0,111110.0,0.0565119]
[1759093798292,0.9438365,111120.0,111110.0,0.42833169]
[1759093800382,0.9438365,111120.0,111110.0,0.43045169]
[1759093800549,0.47402218,111120.0,111110.0,0.61366349]
[1759093800733,0.38026218,111120.0,111110.0,0.61366349]
[1759093800949,0.38026218,111120.0,111110.0,1.01255474]
[1759093801149,0.66106218,111120.0,111110.0,1.01255474]
[1759093802586,0.66106218,111120.0,111110.0,0.64073495]
[1759093802812,0.66106218,111120.0,111110.0,1.35255474]
[1759093803528,0.66106218,111120.0,111110.0,1.35155474]
[1759093803736,0.66106218,111120.0,111110.0,1.35055474]
[1759093803956,0.38026218,111120.0,111110.0,1.35455474]
[1759093804179,0.66106218,111120.0,111110.0,1.35655474]
[1759093808866,0.56106218,111120.0,111110.0,1.35655474]
[1759093811822,0.56106218,111120.0,111110.0,0.61291516]
[1759093812052,0.56106218,111120.0,111110.0,1.35655474]
[1759093813162,0.2808,111120.0,111110.0,1.35655474]
[1759093817538,0.20462968,111130.0,111120.0,0.1799856]
[1759093817721,0.46092968,111130.0,111120.0,0.92362518]
[1759093817879,0.46092968,111130.0,111120.0,0.94630518]
[1759093818713,0.46092968,111130.0,111120.0,0.94635127]
[1759093819738,0.46092968,111130.0,111120.0,0.94735127]
[1759093821327,0.46092968,111130.0,111120.0,0.95256127]
[1759093821931,0.46092968,111130.0,111120.0,1.01983241]
[1759093822776,0.46092968,111130.0,111120.0,0.27619283]
[1759093822980,0.46092968,111130.0,111120.0,1.01983241]